fUST/lending_fUST_20260111
["ID","MTS","AMOUNT","RATE_DAILY","PERIOD"]
[401337883,1768145453790,-458.79996491,0.0003267,7]
[401337884,1768145453800,-347.0,0.0003267,7]
[401337885,1768145453809,-151.0,0.0003267,7]
[401337886,1768145453819,-347.0,0.0003267,7]
[401337887,1768145453829,-156.67760442,0.0003267,7]
[401337888,1768145453839,-347.0,0.0003267,7]
[401337889,1768145453848,-347.0,0.0003267,7]
[401337890,1768145453858,-347.0,0.0003267,7]
[401337891,1768145453868,-347.0,0.0003267,7]
[401337892,1768145453878,-347.0,0.0003267,7]
[401337893,1768145453888,-347.0,0.0003267,7]
[401337894,1768145453897,-347.0,0.0003267,7]
[401337895,1768145453908,-347.0,0.0003267,7]
[401337896,1768145453918,-347.0,0.0003267,7]
[401337897,1768145453928,-347.0,0.0003267,7]
[401337898,1768145453937,-347.0,0.0003267,7]
[401337899,1768145453947,-347.0,0.0003267,7]
[401337900,1768145453956,-347.0,0.0003267,7]
[401337901,1768145453966,-347.0,0.0003267,7]
[401337902,1768145453975,-347.0,0.0003267,7]
[401337903,1768145453985,-347.0,0.0003267,7]
[401337904,1768145453994,-347.0,0.0003267,7]
[401337905,1768145454004,-347.0,0.0003267,7]
[401337906,1768145454014,-347.0,0.0003267,7]
[401337907,1768145454023,-347.0,0.0003267,7]
[401337908,1768145454034,-347.0,0.0003267,7]
[401337909,1768145454045,-347.0,0.0003267,7]
[401337910,1768145454055,-347.0,0.0003267,7]
[401337911,1768145454065,-347.0,0.0003267,7]
[401337912,1768145454075,-347.0,0.0003267,7]
[401337913,1768145454085,-347.0,0.0003267,7]
[401337914,1768145454095,-226.84929612,0.0003267,7]
[401337915,1768145454105,-8981.2468222,0.0003267,2]
[401337916,1768145454115,-10779.16976439,0.0003267,2]
[401337917,1768145454125,-3846.684112,0.0003267,7]
[401337918,1768145454135,-6831.71098291,0.0003267,7]
[401337919,1768145454145,-1007.2843942,0.0003267,2]
[401337920,1768145454155,-323.60682959,0.0003267,2]
[401337921,1768145454164,-1294.42731836,0.0003267,2]
[401337922,1768145454178,-2912.46146631,0.0003267,2]
[401337923,1768145454187,-5177.70927344,0.0003267,2]
[401337924,1768145454200,-4029.13757678,0.0003267,2]
[401337925,1768145454209,-313.02586763,0.0003267,2]
[401337926,1768145454219,-1252.10347052,0.0003267,2]
[401337927,1768145454229,-2817.23280867,0.0003267,2]
[401337928,1768145454239,-5008.41388207,0.0003267,2]
[401337929,1768145454248,-7825.64669074,0.0003267,2]
[401337930,1768145454258,-8090.17073975,0.0003267,2]
[401337931,1768145454269,-1675.14123552,0.0003267,7]
[401337932,1768145454281,-11268.93123466,0.0003267,2]
[401337933,1768145454291,-446.82908164,0.0003267,7]
[401337934,1768145454301,-131616.62126672,0.0003267,2]
[401337935,1768145454440,-346.16352336,0.0003267,2]
[401337936,1768145454452,-4827.5805675,0.0003267,2]
[401337937,1768145454463,-3588.67918169,0.0003267,2]
[401337938,1768145454475,-2799.18313553,0.0003267,2]
[401337939,1768145454491,-151.0,0.00031036,2]
[401337940,1768145454501,-15698.99999995,0.0003267,2]
[401337941,1768145454657,-151.0,0.0002876,7]
[401337942,1768145454668,-169.882376,0.0002876,7]
[401337943,1768145454678,-151.0,0.00031998,31]
[401337944,1768145454688,-4955.81792897,0.0003267,2]
[401337945,1768145454699,-524.3475423,0.0003267,2]
[401337954,1768145880260,172.31,5.994e-05,2]
[401337955,1768146005427,151.95,5e-05,2]
[401337956,1768146006089,151.95,5.8e-05,2]
[401337957,1768146006768,151.95,6.6e-05,2]
[401337958,1768146007312,151.95,7.4e-05,2]
[401337959,1768146007966,151.95,8.2e-05,2]
[401337969,1768146112572,173.5,7.509e-05,2]
[401337970,1768146113034,198.29,7.787e-05,2]
[401337971,1768146113619,223.07,8.065e-05,2]
[401337972,1768146113970,247.86,8.343e-05,2]
[401337985,1768146454116,3402.8316729,7.68e-05,2]
[401337986,1768146454139,6597.1783271,7.68e-05,2]
[401337987,1768146512589,184.96,7.149e-05,2]
[401337988,1768146512844,231.2,7.447e-05,2]
[401337989,1768146513291,277.44,7.745e-05,2]
[401337990,1768146513865,323.68,8.043e-05,2]
[401337991,1768146514205,369.91,8.34e-05,2]
[401338003,1768146555329,-300.0,8.577e-05,2]
[401338005,1768146556424,-1703.53211979,8.578e-05,2]
[401338006,1768146556686,-10000.01,8.578e-05,2]
[401338007,1768146558729,-10000.01,8.578e-05,2]
[401338008,1768146558901,-10000.01,8.578e-05,2]
[401338009,1768146559042,-10000.01,8.578e-05,2]
[401338013,1768146574217,-10000.01,8.578e-05,2]
[401338014,1768146574468,-10000.01,8.578e-05,2]
[401338015,1768146583686,182.12,6.854e-05,2]
[401338016,1768146584091,218.54,7.128e-05,2]
[401338017,1768146584490,254.96,7.402e-05,2]
[401338018,1768146584894,291.39,7.677e-05,2]
[401338019,1768146585301,327.81,7.951e-05,2]
[401338020,1768146585927,364.23,8.225e-05,2]
[401338021,1768146595862,-10000.01,8.578e-05,2]
[401338022,1768146596270,-10000.01,8.578e-05,2]
[401338023,1768146596512,-10000.01,8.578e-05,2]
[401338024,1768146596695,-10000.01,8.578e-05,2]
[401338025,1768146596945,-10000.01,8.578e-05,2]
[401338026,1768146603403,-300.0,8.577e-05,2]
[401338027,1768146603444,-9400.01,8.578e-05,2]
[401338028,1768146603591,-10000.01,8.578e-05,2]
[401338029,1768146605455,151.42,5e-05,2]
[401338030,1768146606403,151.42,5.7e-05,2]
[401338031,1768146606859,151.42,6.3e-05,2]
[401338032,1768146607336,151.42,7e-05,2]
[401338033,1768146607806,151.42,7.6e-05,2]
[401338034,1768146608384,151.42,8.3e-05,2]
[401338035,1768146616849,-245.0,8.577e-05,2]
[401338036,1768146616878,-540.0,8.578e-05,2]
[401338037,1768146616929,-8430.01,8.578e-05,2]
[401338038,1768146617098,-10000.01,8.578e-05,2]
[401338039,1768146617290,-10000.01,8.578e-05,2]
[401338054,1768146631679,-96812.38790547,8.578e-05,2]
[401338065,1768146637947,-307.97652234,8.577e-05,2]
[401338066,1768146637956,-500.0,8.577e-05,2]
[401338067,1768146637965,-500.0,8.577e-05,2]
[401338068,1768146637974,-500.0,8.577e-05,2]
[401338069,1768146637984,-500.0,8.577e-05,2]
[401338070,1768146637993,-500.0,8.577e-05,2]
[401338071,1768146638003,-500.0,8.577e-05,2]
[401338072,1768146638017,-500.0,8.577e-05,2]
[401338073,1768146638027,-500.0,8.577e-05,2]
[401338074,1768146638038,-500.0,8.577e-05,2]
[401338075,1768146638048,-625.48801811,8.577e-05,2]
[401338076,1768146638059,-3254.93291321,8.578e-05,2]
[401338077,1768146638071,-1374.81438009,8.578e-05,2]
[401338078,1768146638082,-5342.06242532,8.578e-05,2]
[401338079,1768146638093,-3035.97198935,8.578e-05,2]
[401338080,1768146638104,-1353.1442974,8.578e-05,2]
[401338081,1768146638116,-3522.03631563,8.578e-05,2]
[401338082,1768146638127,-624446.09864054,8.578e-05,2]
[401338083,1768146638137,-301.01880735,8.677e-05,2]
[401338084,1768146638147,-455.65,8.681e-05,2]
[401338085,1768146638156,-500.0,8.681e-05,2]
[401338086,1768146638166,-50000.0,8.681e-05,2]
[401338087,1768146638175,-483.69509214,8.681e-05,2]
[401338088,1768146638185,-500.0,8.681e-05,2]
[401338089,1768146638194,-500.0,8.681e-05,2]
[401338090,1768146638203,-500.0,8.681e-05,2]
[401338091,1768146638213,-500.0,8.681e-05,2]
[401338092,1768146638223,-500.0,8.681e-05,2]
[401338093,1768146638233,-500.0,8.681e-05,2]
[401338094,1768146638242,-500.0,8.681e-05,2]
[401338095,1768146638252,-500.0,8.681e-05,2]
[401338096,1768146638262,-500.0,8.681e-05,2]
[401338097,1768146638273,-500.0,8.681e-05,2]
[401338098,1768146638283,-500.0,8.681e-05,2]
[401338099,1768146638293,-500.0,8.681e-05,2]
[401338100,1768146638302,-500.0,8.681e-05,2]
[401338101,1768146638312,-500.0,8.681e-05,2]
[401338102,1768146638321,-383.73388855,8.681e-05,2]
[401338103,1768146638331,-500.0,8.681e-05,2]
[401338104,1768146638340,-500.0,8.681e-05,2]
[401338105,1768146638350,-500.0,8.681e-05,2]
[401338106,1768146638359,-500.0,8.681e-05,2]
[401338107,1768146638369,-400.0,8.681e-05,2]
[401338108,1768146638379,-500.0,8.681e-05,2]
[401338109,1768146638388,-500.0,8.681e-05,2]
[401338110,1768146638398,-226.03022952,8.681e-05,2]
[401338111,1768146638407,-500.0,8.681e-05,2]
[401338112,1768146638417,-500.0,8.681e-05,2]
[401338113,1768146638427,-500.0,8.681e-05,2]
[401338114,1768146638436,-500.0,8.681e-05,2]
[401338115,1768146638447,-500.0,8.681e-05,2]
[401338116,1768146638457,-500.0,8.681e-05,2]
[401338117,1768146638467,-500.0,8.681e-05,2]
[401338118,1768146638477,-500.0,8.681e-05,2]
[401338119,1768146638487,-500.0,8.681e-05,2]
[401338120,1768146638496,-500.0,8.681e-05,2]
[401338121,1768146638506,-500.0,8.681e-05,2]
[401338122,1768146638516,-600.0,8.855e-05,2]
[401338123,1768146638528,-3429.65312781,8.855e-05,2]
[401338124,1768146638538,-300.0,8.955e-05,2]
[401338125,1768146638548,-300.0,8.955e-05,2]
[401338126,1768146638558,-300.0,8.955e-05,2]
[401338127,1768146638570,-300.0,8.955e-05,2]
[401338128,1768146638580,-300.0,8.955e-05,2]
[401338129,1768146638590,-300.0,8.955e-05,2]
[401338130,1768146638599,-300.0,8.955e-05,2]
[401338131,1768146638611,-300.0,8.955e-05,2]
[401338132,1768146638621,-300.0,8.955e-05,2]
[401338133,1768146638631,-300.0,8.955e-05,2]
[401338134,1768146638641,-300.0,8.955e-05,2]
[401338135,1768146638651,-300.0,8.955e-05,2]
[401338136,1768146638661,-300.0,8.955e-05,2]
[401338137,1768146638670,-300.0,8.955e-05,2]
[401338138,1768146638680,-300.0,8.955e-05,2]
[401338139,1768146638689,-455.65,8.955e-05,2]
[401338140,1768146638699,-500.0,8.955e-05,2]
[401338141,1768146638709,-151.42,9e-05,2]
[401338142,1768146638719,-151.95,9.1e-05,2]
[401338143,1768146638729,-455.65,9.229e-05,2]
[401338144,1768146638739,-500.0,9.229e-05,2]
[401338145,1768146638749,-420.0,9.435e-05,2]
[401338146,1768146638759,-455.65,9.503e-05,2]
[401338147,1768146638769,-504.16147893,9.503e-05,2]
[401338148,1768146638779,-151.42,9.6e-05,2]
[401338149,1768146638789,-720.0,9.74e-05,2]
[401338150,1768146638799,-455.65900327,9.777e-05,2]
[401338151,1768146638809,-151.95,9.9e-05,2]
[401338152,1768146638819,-153.90472729,0.0001,2]
[401338153,1768146638828,-151.0,0.0001,2]
[401338154,1768146638838,-151.0,0.0001,2]
[401338155,1768146638848,-151.0,0.0001,2]
[401338156,1768146638857,-151.0,0.0001,2]
[401338157,1768146638867,-151.0,0.0001,2]
[401338158,1768146638879,-151.0,0.0001,2]
[401338159,1768146638891,-151.0,0.0001,2]
[401338160,1768146639008,-151.0,0.0001,2]
[401338161,1768146639018,-151.0,0.0001,2]
[401338162,1768146639029,-151.0,0.0001,2]
[401338163,1768146639039,-151.0,0.0001,2]
[401338164,1768146639050,-151.0,0.0001,2]
[401338165,1768146639060,-151.0,0.0001,2]
[401338166,1768146639070,-151.0,0.0001,2]
[401338167,1768146639080,-151.0,0.0001,2]
[401338168,1768146639090,-151.42,0.000103,2]
[401338169,1768146639099,-587.0,0.00010379,2]
[401338170,1768146639109,-355.20219267,0.00010677,2]
[401338171,1768146639119,-921.09641484,0.00010692,2]
[401338172,1768146639129,-151.95,0.000107,2]
[401338173,1768146639139,-864.0,0.00010714,2]
[401338174,1768146639148,-999.0,0.00010959,2]
[401338175,1768146639157,-151.0,0.00011,2]
[401338176,1768146639167,-151.0,0.00011,2]
[401338177,1768146639177,-151.0,0.00011,2]
[401338178,1768146639186,-151.42,0.00011,2]
[401338179,1768146639196,-250.0,0.00011335,2]
[401338180,1768146639206,-823.0,0.00011416,2]
[401338181,1768146639215,-151.95,0.000115,2]
[401338182,1768146639225,-151.42,0.000116,2]
[401338183,1768146639235,-1000.0,0.00011786,2]
[401338184,1768146639244,-402.08,0.00012229,2]
[401338185,1768146639254,-151.95,0.000123,2]
[401338186,1768146639264,-151.42,0.000123,2]
[401338187,1768146639273,-1704.74,0.00012329,2]
[401338188,1768146639283,-1420.62,0.00012329,2]
[401338189,1768146639292,-1183.85,0.00012329,2]
[401338191,1768146639302,-986.54,0.00012329,2]
[401338193,1768146639311,-986.54,0.00012329,2]
[401338195,1768146639320,-657.69,0.00012329,2]
[401338196,1768146639331,-548.08,0.00012329,2]
[401338197,1768146639340,-456.73,0.00012329,2]
[401338198,1768146639350,-380.61,0.00012329,2]
[401338199,1768146639360,-317.17,0.00012329,2]
[401338200,1768146639370,-264.31,0.00012329,2]
[401338201,1768146639380,-220.26,0.00012329,2]
[401338202,1768146639389,-183.55,0.00012329,2]
[401338204,1768146639398,-1438.16098972,0.00012329,2]
[401338205,1768146639407,-1438.16098972,0.00012329,2]
[401338206,1768146639417,-1438.16098972,0.00012329,2]
[401338207,1768146639426,-1438.16098972,0.00012329,2]
[401338208,1768146639436,-1438.16098972,0.00012329,2]
[401338209,1768146639445,-1438.16098972,0.00012329,2]
[401338211,1768146639455,-1438.16098972,0.00012329,2]
[401338213,1768146639464,-1438.16098972,0.00012329,2]
[401338215,1768146639473,-1438.16098972,0.00012329,2]
[401338217,1768146639482,-1438.16098972,0.00012329,2]
[401338218,1768146639492,-1438.16098972,0.00012329,2]
[401338219,1768146639501,-1438.16098972,0.00012329,2]
[401338220,1768146639510,-1438.16098972,0.00012329,2]
[401338221,1768146639520,-1438.16098972,0.00012329,2]
[401338222,1768146639529,-1438.16098972,0.00012329,2]
[401338223,1768146639538,-1438.16098972,0.00012329,2]
[401338224,1768146639547,-1438.16098972,0.00012329,2]
[401338225,1768146639558,-1438.16098972,0.00012329,2]
[401338226,1768146639571,-1438.16098972,0.00012329,2]
[401338227,1768146639581,-1438.16098972,0.00012329,2]
[401338228,1768146639591,-1438.16098972,0.00012329,2]
[401338229,1768146639603,-1438.16098972,0.00012329,2]
[401338230,1768146639614,-1438.16098972,0.00012329,2]
[401338232,1768146639623,-1438.16098972,0.00012329,2]
[401338234,1768146639633,-1438.16098972,0.00012329,2]
[401338235,1768146639643,-1438.16098972,0.00012329,2]
[401338236,1768146639653,-1438.16098972,0.00012329,2]
[401338237,1768146639663,-1438.16098972,0.00012329,2]
[401338238,1768146639673,-1438.16098972,0.00012329,2]
[401338239,1768146639682,-1438.16098972,0.00012329,2]
[401338240,1768146639692,-1438.16098972,0.00012329,2]
[401338241,1768146639701,-1438.16098972,0.00012329,2]
[401338242,1768146639711,-1438.16098972,0.00012329,2]
[401338243,1768146639720,-1438.16098972,0.00012329,2]
[401338244,1768146639730,-1438.16098972,0.00012329,2]
[401338245,1768146639739,-1438.16098972,0.00012329,2]
[401338246,1768146639748,-1438.16098972,0.00012329,2]
[401338247,1768146639757,-1438.16098972,0.00012329,2]
[401338248,1768146639767,-1438.16098972,0.00012329,2]
[401338249,1768146639777,-1438.16098972,0.00012329,2]
[401338250,1768146639787,-1438.16098972,0.00012329,2]
[401338252,1768146639796,-1494.47594007,0.00012329,2]
[401338254,1768146639804,-1494.47594007,0.00012329,2]
[401338257,1768146639824,-1494.47594007,0.00012329,2]
[401338259,1768146639835,-1494.47594007,0.00012329,2]
[401338261,1768146639845,-1494.47594007,0.00012329,2]
[401338263,1768146639855,-1494.47594007,0.00012329,2]
[401338265,1768146639864,-1494.47594007,0.00012329,2]
[401338267,1768146639875,-1494.47594007,0.00012329,2]
[401338269,1768146639884,-1494.47594007,0.00012329,2]
[401338271,1768146639894,-1494.47594007,0.00012329,2]
[401338273,1768146639904,-1494.47594007,0.00012329,2]
[401338275,1768146639914,-1494.47594007,0.00012329,2]
[401338277,1768146639924,-1494.47594007,0.00012329,2]
[401338279,1768146639934,-1494.47594007,0.00012329,2]
[401338281,1768146639944,-1494.47594007,0.00012329,2]
[401338283,1768146639954,-1494.47594007,0.00012329,2]
[401338285,1768146639963,-1494.47594007,0.00012329,2]
[401338287,1768146639972,-1494.47594007,0.00012329,2]
[401338289,1768146639982,-1494.47594007,0.00012329,2]
[401338291,1768146639991,-1494.47594007,0.00012329,2]
[401338293,1768146640002,-1494.47594007,0.00012329,2]
[401338296,1768146640012,-1494.47594007,0.00012329,2]
[401338298,1768146640022,-1494.47594007,0.00012329,2]
[401338300,1768146640031,-1494.47594007,0.00012329,2]
[401338302,1768146640041,-1474.54959421,0.00012329,2]
[401338304,1768146640050,-1474.54959421,0.00012329,2]
[401338306,1768146640060,-1474.54959421,0.00012329,2]
[401338308,1768146640069,-1474.54959421,0.00012329,2]
[401338310,1768146640079,-1474.54959421,0.00012329,2]
[401338312,1768146640089,-1474.54959421,0.00012329,2]
[401338314,1768146640098,-1474.54959421,0.00012329,2]
[401338316,1768146640108,-1474.54959421,0.00012329,2]
[401338318,1768146640118,-1474.54959421,0.00012329,2]
[401338320,1768146640128,-1474.54959421,0.00012329,2]
[401338322,1768146640137,-1474.54959421,0.00012329,2]
[401338324,1768146640147,-1474.54959421,0.00012329,2]
[401338326,1768146640156,-1474.54959421,0.00012329,2]
[401338328,1768146640166,-1474.54959421,0.00012329,2]
[401338330,1768146640175,-1474.54959421,0.00012329,2]
[401338332,1768146640184,-1474.54959421,0.00012329,2]
[401338334,1768146640194,-1474.54959421,0.00012329,2]
[401338336,1768146640203,-1474.54959421,0.00012329,2]
[401338338,1768146640213,-1474.54959423,0.00012329,2]
[401338340,1768146640224,-1474.54959423,0.00012329,2]
[401338342,1768146640233,-1474.54959422,0.00012329,2]
[401338344,1768146640243,-1152.0,0.00012558,2]
[401338346,1768146640253,-409.385578,0.00012677,2]
[401338348,1768146640264,-151.42,0.000129,2]
[401338351,1768146640274,-1000.0,0.00012964,2]
[401338352,1768146640284,-244.0,0.00012964,2]
[401338354,1768146640294,-151.95,0.000131,2]
[401338357,1768146640304,-500.0,0.00013273,2]
[401338359,1768146640314,-500.0,0.00013273,2]
[401338361,1768146640324,-500.0,0.00013273,2]
[401338363,1768146640333,-500.0,0.00013273,2]
[401338365,1768146640342,-500.0,0.00013273,2]
[401338367,1768146640351,-522.11051368,0.00013273,2]
[401338369,1768146640360,-500.0,0.00013273,2]
[401338371,1768146640370,-500.0,0.00013273,2]
[401338372,1768146640379,-500.0,0.00013273,2]
[401338375,1768146640389,-500.0,0.00013273,2]
[401338377,1768146640399,-500.0,0.00013273,2]
[401338379,1768146640410,-500.0,0.00013273,2]
[401338381,1768146640420,-500.0,0.00013273,2]
[401338383,1768146640430,-501.65991965,0.00013273,2]
[401338385,1768146640439,-500.0,0.00013273,2]
[401338387,1768146640449,-500.0,0.00013273,2]
[401338389,1768146640459,-500.0,0.00013273,2]
[401338391,1768146640469,-500.0,0.00013273,2]
[401338393,1768146640479,-500.0,0.00013273,2]
[401338395,1768146640489,-500.0,0.00013273,2]
[401338397,1768146640499,-500.24269708,0.00013273,2]
[401338399,1768146640511,-500.0,0.00013273,2]
[401338401,1768146640521,-500.0,0.00013273,2]
[401338403,1768146640531,-500.0,0.00013273,2]
[401338405,1768146640541,-500.0,0.00013273,2]
[401338407,1768146640552,-500.0,0.00013273,2]
[401338409,1768146640562,-500.0,0.00013273,2]
[401338411,1768146640574,-500.0,0.00013273,2]
[401338414,1768146640583,-500.0,0.00013273,2]
[401338416,1768146640593,-500.0,0.00013273,2]
[401338418,1768146640602,-500.0,0.00013273,2]
[401338420,1768146640612,-500.0,0.00013273,2]
[401338422,1768146640622,-500.0,0.00013273,2]
[401338424,1768146640631,-500.0,0.00013273,2]
[401338426,1768146640642,-500.0,0.00013273,2]
[401338428,1768146640651,-500.0,0.00013273,2]
[401338430,1768146640660,-500.0,0.00013273,2]
[401338432,1768146640670,-500.0,0.00013273,2]
[401338434,1768146640679,-500.0,0.00013273,2]
[401338436,1768146640689,-500.0,0.00013273,2]
[401338438,1768146640698,-500.0,0.00013273,2]
[401338440,1768146640708,-500.0,0.00013273,2]
[401338442,1768146640717,-500.0,0.00013273,2]
[401338444,1768146640726,-500.0,0.00013273,2]
[401338446,1768146640737,-500.0,0.00013273,2]
[401338448,1768146640746,-500.0,0.00013273,2]
[401338450,1768146640756,-500.29461734,0.00013273,2]
[401338452,1768146640766,-500.0,0.00013273,2]
[401338454,1768146640776,-500.0,0.00013273,2]
[401338456,1768146640786,-495.22027723,0.00013273,2]
[401338458,1768146640795,-500.0,0.00013273,2]
[401338460,1768146640805,-500.0,0.00013273,2]
[401338462,1768146640814,-500.0,0.00013273,2]
[401338464,1768146640824,-500.0,0.00013273,2]
[401338466,1768146640834,-402.502339,0.00013273,2]
[401338468,1768146640847,-500.0,0.00013273,2]
[401338470,1768146640857,-151.42,0.000136,2]
[401338472,1768146640866,-300.0,0.00013673,2]
[401338474,1768146640875,-1000.0,0.00013698,2]
[401338476,1768146640885,-1000.0,0.00013698,2]
[401338478,1768146640894,-1000.0,0.00013698,2]
[401338480,1768146640903,-1000.0,0.00013698,2]
[401338482,1768146640913,-1000.0,0.00013698,2]
[401338484,1768146640922,-1000.0,0.00013698,2]
[401338486,1768146640931,-593.71236514,0.00013698,2]
[401338488,1768146640941,-500.0,0.00013698,2]
[401338490,1768146640951,-500.0,0.00013698,2]
[401338492,1768146640960,-500.0,0.00013698,2]
[401338494,1768146640970,-500.0,0.00013698,2]
[401338496,1768146640979,-500.0,0.00013698,2]
[401338498,1768146640988,-500.0,0.00013698,2]
[401338500,1768146640998,-500.0,0.00013698,2]
[401338502,1768146641008,-500.0,0.00013698,2]
[401338515,1768146641122,-500.0,0.00013698,2]
[401338517,1768146641132,-500.0,0.00013698,2]
[401338520,1768146641142,-500.0,0.00013698,2]
[401338521,1768146641152,-500.0,0.00013698,2]
[401338523,1768146641162,-500.0,0.00013698,2]
[401338526,1768146641171,-500.0,0.00013698,2]
[401338528,1768146641180,-500.0,0.00013698,2]
[401338529,1768146641190,-500.0,0.00013698,2]
[401338532,1768146641199,-500.0,0.00013698,2]
[401338534,1768146641208,-500.0,0.00013698,2]
[401338535,1768146641218,-500.0,0.00013698,2]
[401338538,1768146641227,-534.57834013,0.00013698,2]
[401338539,1768146641236,-500.0,0.00013698,2]
[401338541,1768146641246,-500.0,0.00013698,2]
[401338543,1768146641255,-500.0,0.00013698,2]
[401338546,1768146641266,-500.0,0.00013698,2]
[401338547,1768146641275,-564.53140937,0.00013698,2]
[401338549,1768146641284,-740.96,0.00013698,2]
[401338552,1768146641294,-740.96,0.00013698,2]
[401338554,1768146641303,-740.96,0.00013698,2]
[401338555,1768146641312,-740.96,0.00013698,2]
[401338557,1768146641322,-740.96,0.00013698,2]
[401338560,1768146641332,-740.96,0.00013698,2]
[401338562,1768146641341,-740.96,0.00013698,2]
[401338564,1768146641351,-740.96,0.00013698,2]
[401338565,1768146641360,-740.96,0.00013698,2]
[401338567,1768146641370,-740.96,0.00013698,2]
[401338569,1768146641379,-740.96,0.00013698,2]
[401338571,1768146641388,-740.96,0.00013698,2]
[401338573,1768146641398,-740.96,0.00013698,2]
[401338575,1768146641407,-740.96,0.00013698,2]
[401338577,1768146641417,-740.96,0.00013698,2]
[401338580,1768146641427,-740.96,0.00013698,2]
[401338582,1768146641437,-740.96,0.00013698,2]
[401338584,1768146641446,-740.96,0.00013698,2]
[401338586,1768146641457,-740.96,0.00013698,2]
[401338588,1768146641466,-740.96,0.00013698,2]
[401338590,1768146641475,-740.96,0.00013698,2]
[401338592,1768146641484,-740.96,0.00013698,2]
[401338594,1768146641493,-740.96,0.00013698,2]
[401338596,1768146641502,-740.99614657,0.00013698,2]
[401338598,1768146641512,-500.0,0.00013698,2]
[401338600,1768146641521,-500.0,0.00013698,2]
[401338602,1768146641530,-500.0,0.00013698,2]
[401338604,1768146641541,-500.0,0.00013698,2]
[401338605,1768146641551,-500.0,0.00013698,2]
[401338607,1768146641560,-500.0,0.00013698,2]
[401338610,1768146641572,-500.0,0.00013698,2]
[401338611,1768146641581,-500.0,0.00013698,2]
[401338613,1768146641591,-500.0,0.00013698,2]
[401338616,1768146641600,-500.0,0.00013698,2]
[401338617,1768146641610,-239.37126777,0.00013698,2]
[401338620,1768146641620,-500.0,0.00013699,2]
[401338622,1768146641630,-500.0,0.00013699,2]
[401338623,1768146641640,-500.0,0.00013699,2]
[401338625,1768146641650,-500.0,0.00013699,2]
[401338627,1768146641660,-500.0,0.00013699,2]
[401338630,1768146641670,-500.0,0.00013699,2]
[401338632,1768146641679,-500.0,0.00013699,2]
[401338633,1768146641688,-500.0,0.00013699,2]
[401338635,1768146641699,-500.0,0.00013699,2]
[401338637,1768146641709,-252.75899042,0.00013699,2]
[401338640,1768146641718,-500.0,0.00013699,2]
[401338641,1768146641728,-500.0,0.00013699,2]
[401338643,1768146641739,-500.0,0.00013699,2]
[401338645,1768146641750,-500.0,0.00013699,2]
[401338647,1768146641759,-500.0,0.00013699,2]
[401338650,1768146641770,-500.0,0.00013699,2]
[401338652,1768146641781,-231.22740827,0.00013699,2]
[401338654,1768146641797,-500.0,0.00013699,2]
[401338656,1768146641811,-500.0,0.00013699,2]
[401338658,1768146641821,-500.0,0.00013699,2]
[401338660,1768146641830,-500.0,0.00013699,2]
[401338662,1768146641840,-500.0,0.00013699,2]
[401338664,1768146641850,-500.0,0.00013699,2]
[401338666,1768146641860,-500.0,0.00013699,2]
[401338668,1768146641873,-500.93038909,0.00013699,2]
[401338670,1768146641882,-500.0,0.00013699,2]
[401338672,1768146641891,-500.0,0.00013699,2]
[401338674,1768146641900,-252.81793801,0.00013699,2]
[401338676,1768146641909,-500.0,0.00013699,2]
[401338678,1768146641918,-500.0,0.00013699,2]
[401338680,1768146641927,-500.0,0.00013699,2]
[401338682,1768146641936,-500.0,0.00013699,2]
[401338684,1768146641945,-500.0,0.00013699,2]
[401338686,1768146641954,-500.0,0.00013699,2]